[Event "Catalonia Championship Veterans 2024"]
[Site "Salou Tarragona"]
[Date "2024.05.17"]
[Round "7.10"]
[White "Franzoni Ladron de Guevara, Enric"]
[Black "Melero Sanchez, Pere"]
[Result "0-1"]
[ECO "A07"]
[WhiteElo "1854"]
[BlackElo "1934"]
[Annotator "RC"]
[PlyCount "114"]
[EventDate "2024.05.11"]
[EventType "swiss"]
[EventCountry "ESP"]
[SourceTitle "playchess.com"]
[Source "ChessBase"]
[SourceQuality "1"]
[TimeControl "5400+30"]

1. Nf3 {[%emt 0:00:04]} d5 {[%emt 0:00:03]} 2. b3 {[%emt 0:00:29]} c6 {[%emt 0:00:13]} 3. Bb2 {[%emt 0:00:29]} Bf5 {[%emt 0:00:16]} 4. d3 {[%emt 0:02:07]} e6 {[%emt 0:00:31]} 5. Nbd2 {[%emt 0:00:28]} Nf6 {[%emt 0:00:22]} 6. g3 {[%emt 0:02:33]} h6 {[%emt 0:00:19]} 7. Bg2 {[%emt 0:00:31]} Nbd7 {[%emt 0:00:27]} 8. O-O {[%emt 0:00:58]} Bd6 {[%emt 0:00:38]} 9. Nh4 {[%emt 0:02:03]} Bh7 {[%emt 0:01:10]} 10. e3 {[%emt 0:04:41]} Qc7 {[%emt 0:02:59]} 11. Qe2 {[%emt 0:01:05]} O-O-O {[%emt 0:01:02]} 12. a4 {[%emt 0:01:55]} g5 {[%emt 0:05:53]} 13. Nhf3 {[%emt 0:00:25]} Rdg8 {[%emt 0:03:56]} 14. a5 {[%emt 0:00:55]} a6 {[%emt 0:05:21]} 15. b4 {[%emt 0:01:41]} h5 {[%emt 0:02:46]} 16. Rfc1 {[%emt 0:01:06]} Bxb4 {[%emt 0:11:25]} 17. Nb3 {[%emt 0:03:14]} h4 {[%emt 0:04:08]} 18. c4 {[%emt 0:01:04]} Bf5 {[%emt 0:07:54]} 19. cxd5 {[%emt 0:02:10]} exd5 {[%emt 0:03:06]} 20. Nfd4 {[%emt 0:08:37]} Bg4 {[%emt 0:05:06]} 21. Qc2 {[%emt 0:04:49]} Rh6 {[%emt 0:03:04]} 22. Nb5 {[%emt 0:03:13]} Qb8 {[%emt 0:05:09]} 23. Ra4 {[%emt 0:03:08]} Be7 {[%emt 0:01:57]} 24. Bxf6 {[%emt 0:02:43]} Nxf6 {[%emt 0:02:26]} 25. N3d4 {[%emt 0:03:02]} Bd7 {[%emt 0:03:20]} 26. Ra2 {[%emt 0:05:42]} Kd8 {[%emt 0:04:59]} 27. Nc3 {[%emt 0:03:50]} hxg3 {[%emt 0:02:15]} 28. fxg3 {[%emt 0:00:46]} Ng4 {[%emt 0:03:21]} 29. Nf3 {[%emt 0:01:47]} Nxe3 {[%emt 0:01:48]} 30. Qb3 {[%emt 0:00:56]} Nxg2 {[%emt 0:05:20]} 31. Rxg2 {[%emt 0:01:53]} g4 {[%emt 0:01:08]} 32. Nd4 {[%emt 0:02:12]} Qa7 {[%emt 0:01:25]} 33. Nce2 {[%emt 0:02:09]} c5 {[%emt 0:02:47]} 34. Qxd5 {[%emt 0:00:44]} cxd4 {[%emt 0:00:45]} 35. Qxf7 {[%emt 0:02:41]} Rf8 {[%emt 0:01:17]} 36. Qd5 {[%emt 0:01:23]} Rd6 {[%emt 0:00:42]} 37. Qh5 {[%emt 0:01:15]} b5 {[%emt 0:00:45]} 38. Nf4 {[%emt 0:00:54]} Qb7 {[%emt 0:01:17]} 39. Re2 {[%emt 0:03:45]} Rc6 {[%emt 0:02:59]} 40. Rce1 {[%emt 0:01:09]} Bb4 {[%emt 0:00:38]} 41. Qg5+ {[%emt 0:02:53]} Kc8 {[%emt 0:00:34]} 42. Qg7 {[%emt 0:01:09]} Rd8 {[%emt 0:00:49]} 43. Rf1 {[%emt 0:02:45]} Bxa5 {[%emt 0:01:14]} 44. Nd5 {[%emt 0:00:51]} Rd6 {[%emt 0:01:39]} 45. Rc2+ {[%emt 0:03:58]} Kb8 {[%emt 0:00:47]} 46. Ne7 {[%emt 0:00:36]} Bc3 {[%emt 0:01:01]} 47. Rf7 {[%emt 0:01:15]} Be6 {[%emt 0:00:48]} 48. Rf8 {[%emt 0:02:29]} Qc7 {[%emt 0:00:56]} 49. Rcf2 {[%emt 0:00:46]} R6d7 {[%emt 0:01:04]} 50. Qh8 {[%emt 0:01:03]} Rxf8 {[%emt 0:00:38]} 51. Rxf8+ {[%emt 0:00:44]} Kb7 {[%emt 0:00:04]} 52. Ng6 {[%emt 0:01:23]} Bb4 {[%emt 0:00:25]} 53. Rf1 {[%emt 0:01:44]} Bd5 {[%emt 0:00:32]} 54. Nf4 {[%emt 0:02:44]} Bf3 {[%emt 0:00:13]} 55. h4 {[%emt 0:00:40]} Bd2 {[%emt 0:00:18]} 56. Qf6 {[%emt 0:01:49]} Be3+ {[%emt 0:00:16]} 57. Kh2 {[%emt 0:00:42]} Qc2+ {[%emt 0:02:45]} 0-1